[Event "Queens Festival Final Team 2022"]
[Site "Tornelo"]
[Date "2022.06.26"]
[Round "3.2"]
[White "Perez Rodriguez, Jennifer"]
[Black "Krush, Irina"]
[Result "1/2-1/2"]
[ECO "B50"]
[WhiteElo "2251"]
[BlackElo "2430"]
[Annotator "TA"]
[PlyCount "77"]
[EventDate "2022.06.24"]
[EventType "team-tourn"]
[EventCountry "NET"]
[SourceTitle "playchess.com"]
[Source "ChessBase"]
[SourceQuality "1"]
[WhiteTeam "Paraguay"]
[BlackTeam "United States"]
[WhiteTeamCountry "PAR"]
[BlackTeamCountry "USA"]
[TimeControl "180+2"]

{[%evp 9,77,0,10,-22,-29,-29,-30,-21,-20,-45,-20,-19,-15,-16,-12,-22,-27,-25,-21,-35,-43,-43,-22,-69,-29,-33,-25,-56,-55,-44,-38,-58,-25,-42,-16,-46,-49,-69,-40,-173,-77,-165,-41,-80,-67,-176,-125,-149,-149,-157,-89,-96,-97,-359,-343,-334,-259,-248,-208,-162,-57,-57,0,0,0,-56,0,0,0,-20]} 1. e4 {[%emt 0:00:02]} c5 {[%emt 0:00:04]} 2. Nf3 {[%emt 0:00:05]} d6 {[%emt 0:00:01]} 3. c3 {[%emt 0:00:01]} Nf6 {[%emt 0:00:02]} 4. Bd3 {[%emt 0:00:03]} Bg4 {[%emt 0:00:05]} 5. Bc2 {[%emt 0:00:03]} Nc6 {[%emt 0:00:02][%cal Bb8c6,Bc6d4,Bd4c2][%mdl 32]} 6. d4 {[%emt 0:00:01] B50: Sicilian: 2...d6, Miscellaneous.} cxd4 {[%emt 0:00:12]} 7. cxd4 {[%emt 0:00:02]} e5 {[%emt 0:00:08]} 8. d5 {[%emt 0:00:27] Black has an edge.} Nd4 {[%emt 0:00:03]} 9. Nc3 {[%emt 0:00:01] [#]} Nxc2+ $146 {[%emt 0:00:23]} ({Predecessor:} 9... a6 10. Be3 Nxc2+ 11. Qxc2 b5 12. Nd2 Be7 13. f3 Bd7 14. Qb3 Rb8 15. a3 O-O {½-½ (34) Djokic,N (2252)-Kolbert,E (2167) Serbia 2007}) 10. Qxc2 {[%emt 0:00:02]} Bxf3 {[%emt 0:00:09]} 11. gxf3 {[%emt 0:00:03]} Be7 {[%emt 0:00:01]} 12. Be3 {[%emt 0:00:08]} O-O {[%emt 0:00:03]} 13. Qb3 {[%emt 0:00:06]} Qd7 {[%emt 0:00:17]} 14. Rg1 {[%emt 0:00:09]} Nh5 {[%emt 0:00:03][%cal Bf6h5,Bh5f4,Bf4g6,Bg6h4][%mdl 32]} 15. O-O-O {[%emt 0:00:05]} a6 {[%emt 0:00:24]} 16. Na4 {[%emt 0:00:09]} (16. Ne2 $11 {is superior.}) 16... Bd8 {[%emt 0:00:10]} 17. Nb6 {[%emt 0:00:22] Active counter play!} Bxb6 {[%emt 0:00:02]} 18. Bxb6 {[%emt 0:00:01]} Nf4 {[%emt 0:00:05] aiming for ...Ne2+.} 19. Kb1 {[%emt 0:00:07]} Rac8 {[%emt 0:00:03]} 20. Be3 {[%emt 0:00:02]} Ng6 {[%emt 0:00:14]} (20... Nh3 $5 {[%cal Rh3g1]} 21. Rg3 f6 $11) 21. Rc1 {[%emt 0:00:14]} f5 {[%emt 0:00:04]} 22. Rgd1 {[%emt 0:00:23]} Nh4 {[%emt 0:00:05]} 23. Bb6 {[%emt 0:00:06][%cal Of3f4]} h6 {[%emt 0:00:07]} 24. Re1 {[%emt 0:00:21] [#]} (24. f4 $15) 24... Kh7 {[%emt 0:00:08]} (24... fxe4 $1 $19 25. Rxc8 Qxc8 26. fxe4 Nf3) 25. Red1 {[%emt 0:00:08]} (25. Qd3 $17) 25... Qf7 {[%emt 0:00:06]} (25... fxe4 $19 {And now ...Rxc1+ would win.} 26. fxe4 Rxc1+ 27. Rxc1 Nf3) 26. Rxc8 {[%emt 0:00:07]} Rxc8 {[%emt 0:00:02]} 27. Qa3 {[%emt 0:00:06]} (27. f4 $15) 27... Qf6 {[%emt 0:00:07]} (27... Qg6 $19 28. exf5 Qxf5+ 29. Qd3 Rc4) 28. Rc1 {[%emt 0:00:11]} Rxc1+ {[%emt 0:00:02]} 29. Kxc1 {[%emt 0:00:00] [#]} fxe4 {[%emt 0:00:19]} (29... Qg5+ $142 $1 30. Kc2 Qf4) 30. fxe4 $17 {[%emt 0:00:01][%mdl 4096] Endgame KQB-KQN} Nf3 {[%emt 0:00:06]} 31. Be3 $2 {[%emt 0:00:08][%mdl 8192]} (31. Qe3 $17) 31... Nxh2 $19 {[%emt 0:00:05]} 32. Qb4 {[%emt 0:00:02]} Ng4 {[%emt 0:00:05]} 33. Qxb7 {[%emt 0:00:05]} Nxe3 {[%emt 0:00:04]} ({Stronger than} 33... Nxf2 34. Bxf2 Qxf2 35. Qxa6 $17) 34. fxe3 {[%emt 0:00:00] KQ-KQ} Qf1+ {[%emt 0:00:03]} (34... a5 $19 {Hoping for ...Qf3.} 35. Qd7 h5) 35. Kd2 $15 {[%emt 0:00:01]} Qf2+ {[%emt 0:00:01]} ({Better is} 35... Qb5 $1 $15 36. Qxb5 axb5) 36. Kd3 $11 {[%emt 0:00:02]} Qf1+ {[%emt 0:00:02]} ({Black should try} 36... a5 $11) 37. Kd2 $15 {[%emt 0:00:01]} Qf2+ {[%emt 0:00:08]} (37... Qb5 $1 $15 38. Qxb5 axb5) 38. Kd3 $11 {[%emt 0:00:01]} Qf1+ {[%emt 0:00:01]} 39. Kd2 {[%emt 0:00:02] Weighted Error Value: White=0.47/Black=0.28 (precise)} 1/2-1/2

[Event "Queens Festival Final Team 2022"]
[Site "Tornelo"]
[Date "2022.06.26"]
[Round "3.2"]
[White "Bian, Erin"]
[Black "Mayeregger Gonzalez, Fiorella"]
[Result "1-0"]
[ECO "B41"]
[WhiteElo "1811"]
[BlackElo "1284"]
[Annotator "NA RC"]
[PlyCount "81"]
[EventDate "2022.06.24"]
[EventType "team-tourn"]
[EventCountry "NET"]
[SourceTitle "playchess.com"]
[Source "ChessBase"]
[SourceQuality "1"]
[WhiteTeam "United States"]
[BlackTeam "Paraguay"]
[WhiteTeamCountry "USA"]
[BlackTeamCountry "PAR"]
[TimeControl "180+2"]

1. e4 {[%emt 0:00:02]} c5 {[%emt 0:00:06]} 2. Nf3 {[%emt 0:00:02]} e6 {[%emt 0:00:02]} 3. d4 {[%emt 0:00:01]} cxd4 {[%emt 0:00:04]} 4. Nxd4 {[%emt 0:00:03]} a6 {[%emt 0:00:03]} 5. c4 {[%emt 0:00:06]} Qc7 {[%emt 0:00:02]} 6. Nc3 {[%emt 0:00:04]} Nc6 {[%emt 0:00:03]} 7. Be2 {[%emt 0:00:04]} Nf6 {[%emt 0:00:02]} 8. O-O {[%emt 0:00:04]} Bc5 {[%emt 0:00:03]} 9. Be3 {[%emt 0:00:03]} Bxd4 {[%emt 0:00:06]} 10. Bxd4 {[%emt 0:00:01]} Nxd4 {[%emt 0:00:03]} 11. Qxd4 {[%emt 0:00:02]} d6 {[%emt 0:00:03]} 12. Rac1 {[%emt 0:00:08]} Bd7 {[%emt 0:00:03]} 13. f4 {[%emt 0:00:08]} O-O {[%emt 0:00:07]} 14. e5 {[%emt 0:00:01]} dxe5 {[%emt 0:00:10]} 15. fxe5 {[%emt 0:00:03]} Ne8 {[%emt 0:00:05]} 16. Qf4 {[%emt 0:00:09]} f6 {[%emt 0:00:18]} 17. exf6 {[%emt 0:00:27]} Qxf4 {[%emt 0:00:03]} 18. Rxf4 {[%emt 0:00:02]} Nxf6 {[%emt 0:00:07]} 19. Ne4 {[%emt 0:00:05]} Nxe4 {[%emt 0:00:08]} 20. Rxe4 {[%emt 0:00:02]} Rac8 {[%emt 0:00:03]} 21. Bg4 {[%emt 0:00:04]} Rf6 {[%emt 0:00:05]} 22. Rce1 {[%emt 0:00:05]} Re8 {[%emt 0:00:05]} 23. b3 {[%emt 0:00:06]} g6 {[%emt 0:00:08]} 24. Rd1 {[%emt 0:00:04]} Bc8 {[%emt 0:00:18]} 25. Rd6 {[%emt 0:00:10]} Kf7 {[%emt 0:00:06]} 26. c5 {[%emt 0:00:05]} Re7 {[%emt 0:00:03]} 27. b4 {[%emt 0:00:03]} Rc7 {[%emt 0:00:24]} 28. a3 {[%emt 0:00:11]} h5 {[%emt 0:00:10]} 29. Bf3 {[%emt 0:00:11]} Bd7 {[%emt 0:00:10]} 30. Red4 {[%emt 0:00:04]} Ke7 {[%emt 0:00:14]} 31. Be4 {[%emt 0:00:08]} e5 {[%emt 0:00:04]} 32. R4d5 {[%emt 0:00:10]} Bc6 {[%emt 0:00:09]} 33. Rxe5+ {[%emt 0:00:03]} Kf7 {[%emt 0:00:06]} 34. Bxc6 {[%emt 0:00:07]} Rxc6 {[%emt 0:00:16]} 35. Rd7+ {[%emt 0:00:03]} Kf8 {[%emt 0:00:03]} 36. Rxb7 {[%emt 0:00:02]} Rfe6 {[%emt 0:00:02]} 37. Rd5 {[%emt 0:00:04]} Re1+ {[%emt 0:00:03]} 38. Kf2 {[%emt 0:00:01]} Re8 {[%emt 0:00:02]} 39. Rdd7 {[%emt 0:00:02]} Rf6+ {[%emt 0:00:02]} 40. Kg3 {[%emt 0:00:02]} Re3+ {[%emt 0:00:06]} 41. Kh4 {[%emt 0:00:02]} 1-0

[Event "Queens Festival Final Team 2022"]
[Site "Tornelo"]
[Date "2022.06.26"]
[Round "3.2"]
[White "Perez, Dalila"]
[Black "Yellamraju, Aparna"]
[Result "0-1"]
[ECO "E06"]
[WhiteElo "1799"]
[BlackElo "1720"]
[Annotator "NA RC"]
[PlyCount "62"]
[EventDate "2022.06.24"]
[EventType "team-tourn"]
[EventCountry "NET"]
[SourceTitle "playchess.com"]
[Source "ChessBase"]
[SourceQuality "1"]
[WhiteTeam "Paraguay"]
[BlackTeam "United States"]
[WhiteTeamCountry "PAR"]
[BlackTeamCountry "USA"]
[TimeControl "180+2"]

1. d4 {[%emt 0:00:02]} d5 {[%emt 0:00:04]} 2. Nf3 {[%emt 0:00:02]} Nf6 {[%emt 0:00:03]} 3. c4 {[%emt 0:00:02]} e6 {[%emt 0:00:02]} 4. g3 {[%emt 0:00:02]} Be7 {[%emt 0:00:04]} 5. Bg2 {[%emt 0:00:01]} O-O {[%emt 0:00:01]} 6. O-O {[%emt 0:00:03]} c6 {[%emt 0:00:02]} 7. Nbd2 {[%emt 0:00:01]} b6 {[%emt 0:00:01]} 8. Qc2 {[%emt 0:00:02]} Bb7 {[%emt 0:00:03]} 9. Ne5 {[%emt 0:00:05]} Na6 {[%emt 0:00:06]} 10. a3 {[%emt 0:00:06]} c5 {[%emt 0:00:07]} 11. Ndf3 {[%emt 0:00:45]} Rc8 {[%emt 0:00:16]} 12. Qa4 {[%emt 0:00:30]} dxc4 {[%emt 0:00:35]} 13. Rd1 {[%emt 0:00:07]} Qe8 {[%emt 0:00:09]} 14. Qxc4 {[%emt 0:00:22]} cxd4 {[%emt 0:00:09]} 15. Qd3 {[%emt 0:00:02]} Nc5 {[%emt 0:00:04]} 16. Qd2 {[%emt 0:00:18]} Nfe4 {[%emt 0:00:24]} 17. Qe1 {[%emt 0:00:03]} Bf6 {[%emt 0:00:04]} 18. Rxd4 {[%emt 0:00:08]} Nb3 {[%emt 0:00:32]} 19. Rxe4 {[%emt 0:00:23]} Bxe4 {[%emt 0:00:04]} 20. Ra2 {[%emt 0:00:04]} Bd5 {[%emt 0:00:03]} 21. Bf4 {[%emt 0:00:06]} Nd4 {[%emt 0:00:16]} 22. Nxd4 {[%emt 0:00:08]} Bxa2 {[%emt 0:00:02]} 23. b3 {[%emt 0:00:02]} Bxe5 {[%emt 0:00:25]} 24. Bxe5 {[%emt 0:00:02]} f6 {[%emt 0:00:02]} 25. Bd6 {[%emt 0:00:01]} Rf7 {[%emt 0:00:02]} 26. Bb4 {[%emt 0:00:18]} Qd7 {[%emt 0:00:02]} 27. Qd2 {[%emt 0:00:03]} e5 {[%emt 0:00:02]} 28. Qxa2 {[%emt 0:00:01]} Qxd4 {[%emt 0:00:02]} 29. h4 {[%emt 0:00:02]} Rfc7 {[%emt 0:00:02]} 30. Be1 {[%emt 0:00:06]} Rc1 {[%emt 0:00:02]} 31. b4+ {[%emt 0:00:02]} Kh8 {[%emt 0:00:02]} 0-1

[Event "Queens Festival Final Team 2022"]
[Site "Tornelo"]
[Date "2022.06.26"]
[Round "3.3"]
[White "Song, Yuxin"]
[Black "Maksimovic, Suzana"]
[Result "1-0"]
[ECO "B31"]
[WhiteElo "2317"]
[BlackElo "2145"]
[Annotator "TA"]
[PlyCount "69"]
[EventDate "2022.06.24"]
[EventType "team-tourn"]
[EventCountry "NET"]
[SourceTitle "playchess.com"]
[Source "ChessBase"]
[SourceQuality "1"]
[WhiteTeam "China"]
[BlackTeam "Serbia"]
[WhiteTeamCountry "CHN"]
[BlackTeamCountry "SRB"]
[TimeControl "180+2"]

{[%evp 13,69,16,41,33,43,34,44,21,29,25,27,30,24,20,39,7,25,0,37,22,28,31,38,57,48,57,47,0,45,-17,18,0,0,0,0,-13,0,0,128,127,127,127,110,116,143,142,178,18,158,157,154,136,172,144,128,128,156,145]} 1. e4 {[%emt 0:00:02]} c5 {[%emt 0:00:05]} 2. Nf3 {[%emt 0:00:01]} Nc6 {[%emt 0:00:01]} 3. Bb5 {[%emt 0:00:03]} g6 {[%emt 0:00:02]} 4. O-O {[%emt 0:00:01]} Bg7 {[%emt 0:00:02]} 5. Re1 {[%emt 0:00:01]} e5 {[%emt 0:00:03]} 6. Bxc6 {[%emt 0:00:01]} dxc6 {[%emt 0:00:03]} 7. d3 {[%emt 0:00:01]} Ne7 {[%emt 0:00:04]} 8. a3 {[%emt 0:00:01] B31: Sicilian: 2...Nc6 3 Bb5 g6.} O-O {[%emt 0:00:03]} 9. b4 {[%emt 0:00:01] [#]} Bg4 $146 {[%emt 0:00:34]} ({Predecessor:} 9... cxb4 10. axb4 a6 11. Bb2 Qc7 12. Nbd2 h6 13. Nc4 Bg4 14. h3 Bxf3 15. Qxf3 Rae8 {1-0 (84) Maze,S (2557)-Sliwicki,D (2180) Chess.com INT 2020}) 10. bxc5 {[%emt 0:00:07] White is slightly better.} Bxf3 {[%emt 0:00:19]} 11. Qxf3 {[%emt 0:00:02] Threatening Nd2.} Qd4 {[%emt 0:00:01][%csl LRa1,LRc5]} 12. Ra2 {[%emt 0:00:15] Hoping for Be3.} Qxc5 {[%emt 0:00:02]} 13. Be3 {[%emt 0:00:02]} Qa5 {[%emt 0:00:07][%cal Ra5e1] [#]} 14. Bd2 {[%emt 0:00:08]} Qc7 {[%emt 0:00:13]} 15. Nc3 {[%emt 0:00:02]} h6 {[%emt 0:00:04]} 16. Qh3 {[%emt 0:00:04]} Kh7 {[%emt 0:00:03]} 17. a4 {[%emt 0:00:05][%cal Ba3a4,Ba4a5][%mdl 32]} f5 {[%emt 0:00:09]} 18. exf5 {[%emt 0:00:05]} gxf5 {[%emt 0:00:02]} 19. a5 {[%emt 0:00:08]} Ng6 {[%emt 0:00:11]} 20. Na4 {[%emt 0:00:10]} (20. Rb1 $14) 20... Qf7 {[%emt 0:00:25]} 21. Ra3 {[%emt 0:00:10]} (21. Rb2 $14) 21... Rad8 {[%emt 0:00:06][%cal Oe5e4]} 22. Nc5 {[%emt 0:00:06]} Rd5 {[%emt 0:00:11]} 23. Nb3 {[%emt 0:00:17]} Rfd8 {[%emt 0:00:11]} 24. Ra4 {[%emt 0:00:02]} e4 {[%emt 0:00:04]} 25. dxe4 {[%emt 0:00:12]} fxe4 {[%emt 0:00:07]} (25... Rxd2 $11 {remains equal.} 26. Nxd2 Rxd2) 26. Qe3 $16 {[%emt 0:00:29]} Qd7 {[%emt 0:00:14][%cal Rd5d2]} 27. Bc3 {[%emt 0:00:04]} Bxc3 {[%emt 0:00:10]} 28. Qxc3 {[%emt 0:00:02]} Rd1 {[%emt 0:00:04]} 29. Raxe4 {[%emt 0:00:04]} Qf5 {[%emt 0:00:05] ( -> ...Qxe4)} 30. Nc5 {[%emt 0:00:28]} (30. f3 $18) 30... R8d5 {[%emt 0:00:05] [#]} (30... R8d2 $11 {keeps the balance.} 31. Qe3 Rxe1+ 32. Qxe1 Rxc2) 31. Ne6 $1 {[%emt 0:00:04][%csl Ge6][%cal Rc3g7,Bc5e6,Be6d4,Bd4f3][%mdl 32] White is more active.} Rxe1+ {[%emt 0:00:07]} 32. Rxe1 {[%emt 0:00:03][%csl Ge6][%cal Rc3g7] Really sharp!} Re5 {[%emt 0:00:02]} 33. Nd4 {[%emt 0:00:09]} Rxe1+ {[%emt 0:00:03]} 34. Qxe1 {[%emt 0:00:01]} Qd5 {[%emt 0:00:03]} 35. Nf3 {[%emt 0:00:03] Weighted Error Value: White=0.25 (precise) /Black=0.27 (precise)} 1-0

[Event "Queens Festival Final Team 2022"]
[Site "Tornelo"]
[Date "2022.06.26"]
[Round "3.3"]
[White "Vujcic, Milena"]
[Black "Hong, Xing"]
[Result "0-1"]
[ECO "B38"]
[WhiteElo "1987"]
[BlackElo "1999"]
[Annotator "NA RC"]
[PlyCount "66"]
[EventDate "2022.06.24"]
[EventType "team-tourn"]
[EventCountry "NET"]
[SourceTitle "playchess.com"]
[Source "ChessBase"]
[SourceQuality "1"]
[WhiteTeam "Serbia"]
[BlackTeam "China"]
[WhiteTeamCountry "SRB"]
[BlackTeamCountry "CHN"]
[TimeControl "180+2"]

1. e4 {[%emt 0:00:02]} c5 {[%emt 0:00:04]} 2. Nf3 {[%emt 0:00:02]} Nc6 {[%emt 0:00:02]} 3. d4 {[%emt 0:00:01]} cxd4 {[%emt 0:00:00]} 4. Nxd4 {[%emt 0:00:01]} g6 {[%emt 0:00:01]} 5. c4 {[%emt 0:00:03]} Bg7 {[%emt 0:00:01]} 6. Be3 {[%emt 0:00:02]} Nf6 {[%emt 0:00:01]} 7. Nc3 {[%emt 0:00:01]} O-O {[%emt 0:00:02]} 8. Be2 {[%emt 0:00:03]} d6 {[%emt 0:00:01]} 9. O-O {[%emt 0:00:01]} Nxd4 {[%emt 0:00:03]} 10. Bxd4 {[%emt 0:00:02]} Be6 {[%emt 0:00:01]} 11. Rc1 {[%emt 0:00:06]} Rc8 {[%emt 0:00:01]} 12. b3 {[%emt 0:00:02]} a6 {[%emt 0:00:01]} 13. Qd2 {[%emt 0:00:02]} Nd7 {[%emt 0:00:07]} 14. Rfd1 {[%emt 0:00:08]} Bxd4 {[%emt 0:00:02]} 15. Qxd4 {[%emt 0:00:02]} Qb6 {[%emt 0:00:01]} 16. Nd5 {[%emt 0:00:10]} Bxd5 {[%emt 0:00:03]} 17. Qxd5 {[%emt 0:00:13]} Rc5 {[%emt 0:00:02]} 18. Qd2 {[%emt 0:00:03]} Ne5 {[%emt 0:00:12]} 19. Kh1 {[%emt 0:00:05]} Rfc8 {[%emt 0:00:03]} 20. f4 {[%emt 0:00:03]} Nc6 {[%emt 0:00:17]} 21. Bf3 {[%emt 0:00:03]} Qb4 {[%emt 0:00:06]} 22. Qe3 {[%emt 0:00:12]} Nd8 {[%emt 0:00:15]} 23. f5 {[%emt 0:00:40]} b5 {[%emt 0:00:03]} 24. f6 {[%emt 0:00:06]} exf6 {[%emt 0:00:03]} 25. cxb5 {[%emt 0:00:27]} axb5 {[%emt 0:00:04]} 26. Rxc5 {[%emt 0:00:27]} Qxc5 {[%emt 0:00:06]} 27. Qf4 {[%emt 0:00:03]} Qe5 {[%emt 0:00:09]} 28. Qd2 {[%emt 0:00:13]} Rc6 {[%emt 0:00:09]} 29. Be2 {[%emt 0:00:08]} Ne6 {[%emt 0:00:07]} 30. Bxb5 {[%emt 0:00:02]} Qxb5 {[%emt 0:00:02]} 31. Qd5 {[%emt 0:00:06]} Qc5 {[%emt 0:00:10]} 32. b4 {[%emt 0:00:03]} Qc2 {[%emt 0:00:05]} 33. b5 {[%emt 0:00:02]} Nf4 {[%emt 0:00:08]} 0-1

[Event "Queens Festival Final Team 2022"]
[Site "Tornelo"]
[Date "2022.06.26"]
[Round "3.3"]
[White "Cui, Wen"]
[Black "Vukosavljevic, Tatjana"]
[Result "1-0"]
[ECO "C41"]
[WhiteElo "1718"]
[BlackElo "1758"]
[Annotator "NA RC"]
[PlyCount "69"]
[EventDate "2022.06.24"]
[EventType "team-tourn"]
[EventCountry "NET"]
[SourceTitle "playchess.com"]
[Source "ChessBase"]
[SourceQuality "1"]
[WhiteTeam "China"]
[BlackTeam "Serbia"]
[WhiteTeamCountry "CHN"]
[BlackTeamCountry "SRB"]
[TimeControl "180+2"]

1. e4 {[%emt 0:00:02]} e5 {[%emt 0:00:04]} 2. Nf3 {[%emt 0:00:02]} Nf6 {[%emt 0:00:02]} 3. Nc3 {[%emt 0:00:03]} Nc6 {[%emt 0:00:02]} 4. d4 {[%emt 0:00:02]} exd4 {[%emt 0:00:06]} 5. Nxd4 {[%emt 0:00:02]} d6 {[%emt 0:00:09]} 6. Be2 {[%emt 0:00:08]} Be7 {[%emt 0:00:03]} 7. O-O {[%emt 0:00:01]} O-O {[%emt 0:00:02]} 8. Be3 {[%emt 0:00:03]} Re8 {[%emt 0:00:12]} 9. Bf3 {[%emt 0:00:05]} Ne5 {[%emt 0:00:03]} 10. Be2 {[%emt 0:00:06]} Bf8 {[%emt 0:00:02]} 11. h3 {[%emt 0:00:04]} Ned7 {[%emt 0:00:14]} 12. Bd3 {[%emt 0:00:15]} Nc5 {[%emt 0:00:03]} 13. Qf3 {[%emt 0:00:05]} Qe7 {[%emt 0:00:21]} 14. Bg5 {[%emt 0:00:18]} Nxd3 {[%emt 0:00:28]} 15. cxd3 {[%emt 0:00:03]} Qe5 {[%emt 0:00:02]} 16. Bxf6 {[%emt 0:00:11]} Qxf6 {[%emt 0:00:10]} 17. Qxf6 {[%emt 0:00:02]} gxf6 {[%emt 0:00:01]} 18. Nd5 {[%emt 0:00:02]} Bg7 {[%emt 0:00:20]} 19. Nxc7 {[%emt 0:00:02]} Bd7 {[%emt 0:00:04]} 20. Nxa8 {[%emt 0:00:03]} Rxa8 {[%emt 0:00:03]} 21. Rac1 {[%emt 0:00:11]} f5 {[%emt 0:00:15]} 22. Nxf5 {[%emt 0:00:02]} Bxf5 {[%emt 0:00:02]} 23. exf5 {[%emt 0:00:02]} Bxb2 {[%emt 0:00:04]} 24. Rb1 {[%emt 0:00:02]} Bd4 {[%emt 0:00:04]} 25. Rxb7 {[%emt 0:00:02]} Re8 {[%emt 0:00:07]} 26. Rb4 {[%emt 0:00:04]} Bc5 {[%emt 0:00:02]} 27. Rb2 {[%emt 0:00:02]} Re5 {[%emt 0:00:05]} 28. g4 {[%emt 0:00:02]} h5 {[%emt 0:00:03]} 29. Kg2 {[%emt 0:00:03]} Kg7 {[%emt 0:00:03]} 30. Kf3 {[%emt 0:00:13]} Kf6 {[%emt 0:00:05]} 31. Rd1 {[%emt 0:00:09]} Bd4 {[%emt 0:00:09]} 32. Rb4 {[%emt 0:00:01]} Bc5 {[%emt 0:00:03]} 33. Ra4 {[%emt 0:00:02]} Kg5 {[%emt 0:00:16]} 34. d4 {[%emt 0:00:04]} Rd5 {[%emt 0:00:02]} 35. Ke4 {[%emt 0:00:07]} 1-0

[Event "Queens Festival Final Team 2022"]
[Site "Tornelo"]
[Date "2022.06.26"]
[Round "3.3"]
[White "Vujovic, Vera"]
[Black "Jiang, Tianyu"]
[Result "0-1"]
[ECO "B48"]
[WhiteElo "1353"]
[BlackElo "1502"]
[Annotator "NA RC"]
[PlyCount "162"]
[EventDate "2022.06.24"]
[EventType "team-tourn"]
[EventCountry "NET"]
[SourceTitle "playchess.com"]
[Source "ChessBase"]
[SourceQuality "1"]
[WhiteTeam "Serbia"]
[BlackTeam "China"]
[WhiteTeamCountry "SRB"]
[BlackTeamCountry "CHN"]
[TimeControl "180+2"]

1. e4 {[%emt 0:00:02]} c5 {[%emt 0:00:04]} 2. Nf3 {[%emt 0:00:02]} e6 {[%emt 0:00:01]} 3. d4 {[%emt 0:00:01]} cxd4 {[%emt 0:00:00]} 4. Nxd4 {[%emt 0:00:02]} Nc6 {[%emt 0:00:01]} 5. Nc3 {[%emt 0:00:02]} Qc7 {[%emt 0:00:01]} 6. Be3 {[%emt 0:00:02]} a6 {[%emt 0:00:02]} 7. f3 {[%emt 0:00:04]} Nf6 {[%emt 0:00:02]} 8. Qd2 {[%emt 0:00:03]} Bb4 {[%emt 0:00:04]} 9. Nde2 {[%emt 0:00:14]} d5 {[%emt 0:00:12]} 10. exd5 {[%emt 0:00:06]} Nxd5 {[%emt 0:00:03]} 11. a3 {[%emt 0:00:10]} Nxe3 {[%emt 0:00:14]} 12. Qxe3 {[%emt 0:00:07]} Be7 {[%emt 0:00:03]} 13. Qf4 {[%emt 0:00:26]} Qxf4 {[%emt 0:00:04]} 14. Nxf4 {[%emt 0:00:03]} O-O {[%emt 0:00:02]} 15. Nd3 {[%emt 0:00:09]} b5 {[%emt 0:00:06]} 16. Ne4 {[%emt 0:00:12]} e5 {[%emt 0:00:04]} 17. g3 {[%emt 0:00:11]} Bf5 {[%emt 0:00:04]} 18. Bg2 {[%emt 0:00:10]} Rac8 {[%emt 0:00:08]} 19. c3 {[%emt 0:00:05]} Rfd8 {[%emt 0:00:06]} 20. O-O-O {[%emt 0:00:06]} f6 {[%emt 0:00:16]} 21. g4 {[%emt 0:00:08]} Bg6 {[%emt 0:00:02]} 22. h4 {[%emt 0:00:02]} h5 {[%emt 0:00:02]} 23. gxh5 {[%emt 0:00:04]} Bxh5 {[%emt 0:00:02]} 24. Ndf2 {[%emt 0:00:09]} Na5 {[%emt 0:00:03]} 25. Kb1 {[%emt 0:00:08]} Nc4 {[%emt 0:00:02]} 26. Rhe1 {[%emt 0:00:17]} Rxd1+ {[%emt 0:00:09]} 27. Nxd1 {[%emt 0:00:02]} Rd8 {[%emt 0:00:03]} 28. Ne3 {[%emt 0:00:03]} Nd2+ {[%emt 0:00:14]} 29. Nxd2 {[%emt 0:00:06]} Rxd2 {[%emt 0:00:00]} 30. Kc1 {[%emt 0:00:23]} Rf2 {[%emt 0:00:07]} 31. Rf1 {[%emt 0:00:02]} Re2 {[%emt 0:00:05]} 32. Nf5 {[%emt 0:00:04]} Bc5 {[%emt 0:00:07]} 33. Bh3 {[%emt 0:00:04]} Bg6 {[%emt 0:00:27]} 34. h5 {[%emt 0:00:11]} Bxh5 {[%emt 0:00:10]} 35. Ng3 {[%emt 0:00:03]} Be3+ {[%emt 0:00:02]} 36. Kb1 {[%emt 0:00:05]} Bg6+ {[%emt 0:00:02]} 37. Ka1 {[%emt 0:00:00]} Rh2 {[%emt 0:00:07]} 38. Bf5 {[%emt 0:00:02]} Bxf5 {[%emt 0:00:11]} 39. Nxf5 {[%emt 0:00:01]} Bc5 {[%emt 0:00:02]} 40. b4 {[%emt 0:00:01]} Bf8 {[%emt 0:00:09]} 41. Ne3 {[%emt 0:00:02]} Re2 {[%emt 0:00:06]} 42. Nd5 {[%emt 0:00:02]} Rd2 {[%emt 0:00:03]} 43. Ne3 {[%emt 0:00:01]} Rd3 {[%emt 0:00:02]} 44. Nd1 {[%emt 0:00:01]} Kf7 {[%emt 0:00:05]} 45. Kb2 {[%emt 0:00:03]} Rd2+ {[%emt 0:00:01]} 46. Kb3 {[%emt 0:00:02]} Ke6 {[%emt 0:00:06]} 47. Nf2 {[%emt 0:00:01]} f5 {[%emt 0:00:02]} 48. Nh3 {[%emt 0:00:04]} Be7 {[%emt 0:00:02]} 49. Nf2 {[%emt 0:00:03]} g5 {[%emt 0:00:03]} 50. Nd1 {[%emt 0:00:02]} e4 {[%emt 0:00:15]} 51. fxe4 {[%emt 0:00:03]} fxe4 {[%emt 0:00:00]} 52. Re1 {[%emt 0:00:01]} Ke5 {[%emt 0:00:01]} 53. Ne3 {[%emt 0:00:02]} Bd6 {[%emt 0:00:08]} 54. c4 {[%emt 0:00:03]} Bc7 {[%emt 0:00:04]} 55. cxb5 {[%emt 0:00:03]} axb5 {[%emt 0:00:00]} 56. a4 {[%emt 0:00:02]} bxa4+ {[%emt 0:00:02]} 57. Kxa4 {[%emt 0:00:01]} Bb6 {[%emt 0:00:01]} 58. Nc4+ {[%emt 0:00:02]} Kf4 {[%emt 0:00:03]} 59. Nxd2 {[%emt 0:00:02]} e3 {[%emt 0:00:01]} 60. Nc4 {[%emt 0:00:01]} Bd4 {[%emt 0:00:02]} 61. b5 {[%emt 0:00:01]} Kf3 {[%emt 0:00:01]} 62. b6 {[%emt 0:00:01]} Kf2 {[%emt 0:00:04]} 63. b7 {[%emt 0:00:03]} Ba7 {[%emt 0:00:01]} 64. Rxe3 {[%emt 0:00:02]} g4 {[%emt 0:00:04]} 65. Rc3 {[%emt 0:00:06]} g3 {[%emt 0:00:04]} 66. Ne3 {[%emt 0:00:01]} Bb8 {[%emt 0:00:05]} 67. Nd1+ {[%emt 0:00:04]} Ke2 {[%emt 0:00:03]} 68. Nb2 {[%emt 0:00:03]} g2 {[%emt 0:00:01]} 69. Rc2+ {[%emt 0:00:01]} Kf1 {[%emt 0:00:02]} 70. Rc1+ {[%emt 0:00:02]} Kf2 {[%emt 0:00:01]} 71. Nd3+ {[%emt 0:00:02]} Ke3 {[%emt 0:00:02]} 72. Nc5 {[%emt 0:00:02]} Kf2 {[%emt 0:00:03]} 73. Nd7 {[%emt 0:00:03]} Bf4 {[%emt 0:00:01]} 74. Rc2+ {[%emt 0:00:02]} Kf1 {[%emt 0:00:01]} 75. Rc1+ {[%emt 0:00:02]} Bxc1 {[%emt 0:00:03]} 76. b8=Q {[%emt 0:00:03]} g1=Q {[%emt 0:00:02]} 77. Qb1 {[%emt 0:00:01]} Qd4+ {[%emt 0:00:02]} 78. Kb3 {[%emt 0:00:02]} Qd5+ {[%emt 0:00:02]} 79. Kc2 {[%emt 0:00:03]} Qc4+ {[%emt 0:00:01]} 80. Kd1 {[%emt 0:00:03]} Bf4 {[%emt 0:00:02]} 81. Qc2 {[%emt 0:00:02]} Qd4+ {[%emt 0:00:02]} 0-1